bitfinex/quotes_ETHUSD_20251215
["timestamp","ask_amount","ask_price","bid_price","bid_amount"]
[1765766909879,26.86923901,3121.1,3121.0,0.9957]
[1765766909880,15.29677559,3121.1,3121.0,0.9957]
[1765766910179,12.67325229,3121.1,3121.0,0.9957]
[1765766910499,15.87725088,3121.1,3121.0,0.5]
[1765766910707,16.28275488,3121.1,3121.0,0.5]
[1765766910887,35.17827788,3121.1,3121.0,0.001]
[1765766911092,37.12694161,3121.1,3121.0,0.001]
[1765766911578,47.14618467,3121.1,3121.0,0.001]
[1765766911975,46.65118467,3121.1,3121.0,0.001]
[1765766912510,46.65118467,3121.1,3120.3,0.001]
[1765766912511,39.92974706,3120.3,3119.7,0.001]
[1765766912670,41.50728994,3120.3,3119.7,0.001]
[1765766912869,45.21814168,3120.3,3119.7,0.001]
[1765766913069,30.405504,3120.1,3119.7,0.001]
[1765766913265,31.36157929,3120.1,3119.7,0.001]
[1765766913582,38.01985405,3120.1,3119.7,0.001]
[1765766913769,38.14827877,3120.1,3119.7,0.001]
[1765766914411,30.405504,3119.9,3119.7,0.001]
[1765766914716,32.16637929,3119.9,3119.7,0.001]
[1765766915004,35.86661022,3119.9,3119.7,0.001]
[1765766915367,30.98597929,3119.8,3119.7,0.001]
[1765766915568,31.85987929,3119.8,3119.7,0.001]
[1765766915810,31.36487929,3119.8,3119.7,0.001]
[1765766916101,31.49797929,3119.8,3119.7,0.5]
[1765766916402,31.97527929,3119.8,3119.7,0.001]
[1765766917097,35.18061296,3119.8,3119.7,0.001]
[1765766917604,34.70331296,3119.8,3119.7,0.001]
[1765766918106,34.70331296,3119.8,3119.7,0.5]
[1765766918278,14.08361096,3119.8,3119.7,0.9957]
[1765766918464,12.15451496,3119.8,3119.7,0.9957]
[1765766918671,5.617222,3119.8,3119.7,0.9957]
[1765766918894,6.70969729,3119.8,3119.7,0.9957]
[1765766919097,12.00502096,3119.8,3119.7,0.9957]
[1765766919304,9.94678096,3119.8,3119.7,0.9957]
[1765766919500,10.35228496,3119.8,3119.7,0.9957]
[1765766920093,26.95212896,3119.8,3119.7,0.9957]
[1765766920405,1.09247529,3119.8,3119.7,0.9957]
[1765766920718,0.512,3119.8,3119.7,4.20113642]
[1765766920900,0.512,3119.8,3119.7,4.94200558]
[1765766921908,0.512,3119.8,3119.7,4.20113642]
[1765766922119,0.512,3119.8,3119.7,0.9957]
[1765766922432,4.12283767,3119.8,3119.7,0.9957]
[1765766922617,18.47898067,3119.8,3119.7,0.9957]
[1765766922780,15.273647,3119.8,3119.7,0.9957]
[1765766922980,4.781238,3119.8,3119.7,0.9957]
[1765766923179,0.917504,3119.8,3119.7,0.9957]
[1765766923679,20.358358,3119.8,3119.7,0.9957]
[1765766924014,8.008259,3119.8,3119.7,0.9957]
[1765766924214,0.917504,3119.8,3119.7,0.9957]
[1765766924420,0.00966759,3120.0,3119.7,0.9957]
[1765766924580,0.00966759,3119.8,3119.7,0.001]
[1765766924782,0.41517159,3119.8,3119.7,0.001]
[1765766925006,0.41517159,3119.8,3119.7,0.5]
[1765766925193,0.41517159,3119.8,3119.7,0.9957]
[1765766925393,0.41517159,3119.8,3119.7,4.20113642]
[1765766925780,0.512,3119.9,3119.7,4.94201338]
[1765766926092,0.917504,3119.9,3119.8,0.9947]
[1765766926805,0.512,3119.9,3119.8,0.9947]
[1765766927315,0.512,3119.9,3119.8,4.20003367]
[1765766927510,0.917504,3119.9,3119.8,0.9947]
[1765766928109,0.917504,3119.9,3119.8,4.20003367]
[1765766928312,0.917504,3119.9,3119.8,0.9947]
[1765766930536,0.917504,3119.9,3119.8,0.499]
[1765766930738,16.921303,3119.9,3119.7,0.001]
[1765766930921,2.54881059,3119.8,3119.7,0.001]
[1765766931119,2.54881059,3119.8,3119.7,0.4967]
[1765766931330,2.54881059,3119.8,3119.7,0.9957]
[1765766931844,8.42235659,3119.8,3119.7,0.9957]
[1765766932132,8.82786059,3119.8,3119.7,0.9957]
[1765766932630,5.39022059,3119.8,3119.7,0.9957]
[1765766933352,5.39022059,3119.8,3119.7,0.5]
[1765766933526,5.39022059,3119.8,3119.7,0.9957]
[1765766933926,5.39022059,3119.8,3119.7,0.5]
[1765766934241,11.06023156,3119.8,3119.7,0.001]
[1765766934449,10.08793156,3119.8,3119.7,0.001]
[1765766934629,22.71410556,3119.8,3119.7,0.001]
[1765766935142,23.68640556,3119.8,3119.7,0.001]
[1765766935715,30.91665556,3119.8,3119.7,0.001]
[1765766936320,28.53475256,3119.8,3119.7,0.001]
[1765766936839,36.08518256,3119.8,3119.7,0.001]
[1765766937633,20.89820656,3119.8,3119.7,0.001]
[1765766937841,27.43242356,3119.8,3119.7,0.001]
[1765766938138,12.18267656,3119.8,3119.7,0.001]
[1765766938342,12.69467656,3119.8,3119.7,0.001]
[1765766938940,21.05027656,3119.8,3119.7,0.001]
[1765766939144,19.47955756,3119.8,3119.7,0.001]
[1765766939442,7.27810556,3119.8,3119.7,0.463]
[1765766939607,7.79010556,3119.8,3119.7,0.463]
[1765766939809,23.13863256,3119.8,3119.7,0.463]
[1765766940004,15.45283456,3119.8,3119.7,0.463]
[1765766940238,14.34458156,3119.8,3119.7,0.463]
[1765766940434,14.82238156,3119.8,3119.7,0.001]
[1765766940611,15.28808156,3119.8,3119.7,0.001]
[1765766940812,36.56838256,3119.8,3119.7,0.001]
[1765766941559,36.10468256,3119.8,3119.7,0.001]
[1765766941724,6.10468256,3119.8,3119.7,0.001]
[1765766941924,36.57038256,3119.8,3119.7,0.001]
[1765766944564,34.70937856,3119.8,3119.7,0.463]
[1765766944723,15.06792288,3119.8,3119.7,0.463]
[1765766944924,23.67426955,3119.8,3119.7,0.463]
[1765766945259,0.52366759,3119.8,3119.7,0.9366]
[1765766945460,2.75458159,3119.8,3119.7,0.9366]
[1765766945757,1.50964688,3119.8,3119.7,0.9366]
[1765766946156,0.52366759,3119.8,3119.7,0.9366]
[1765766946632,0.92917159,3119.8,3119.7,0.9366]
[1765766947542,0.514,3119.8,3119.7,0.9366]
[1765766947744,0.919504,3119.8,3119.7,0.9366]
[1765766947936,0.514,3119.8,3119.7,0.9366]
[1765766948459,0.514,3119.8,3119.7,4.14203642]
[1765766948652,0.919504,3119.8,3119.7,4.14203642]
[1765766949041,0.002,3119.8,3119.7,0.9366]
[1765766949243,0.514,3119.8,3119.7,4.14203642]
[1765766949446,0.919504,3119.8,3119.7,4.14203642]
[1765766949654,0.919504,3119.8,3119.7,4.87700212]
[1765766949655,0.002,3119.8,3119.7,4.87700212]
[1765766949966,0.514,3119.8,3119.7,4.87700212]
[1765766951265,0.002,3119.8,3119.7,4.87700212]
[1765766951469,0.002,3119.8,3119.7,5.45747741]
[1765766954376,0.512,3121.0,3119.8,1.51607529]
[1765766954544,0.512,3121.0,3120.9,0.6274]
[1765766954950,0.512,3121.0,3120.9,4.30520391]
[1765766955350,0.512,3121.0,3120.9,1.101]
[1765766955550,0.512,3121.0,3120.9,4.30520391]
[1765766957091,0.514,3121.0,3120.9,4.30520391]
[1765766957240,0.514,3121.0,3120.9,0.6274]
[1765766957444,0.919504,3121.0,3120.9,0.6274]
[1765766958470,0.919504,3121.0,3120.9,1.101]
[1765766960956,0.919504,3121.0,3120.9,4.30520391]
[1765766961359,0.919504,3121.0,3120.6,3.20443951]
[1765766961360,0.405504,3120.9,3120.6,3.20443951]
[1765766961883,0.405504,3120.9,3120.5,3.20459393]
[1765766962178,0.405504,3120.9,3120.4,0.1654]
[1765766962364,1.054404,3120.9,3120.4,0.1654]
[1765766962672,0.00966759,3120.5,3120.4,3.37003864]
[1765766962863,0.00966759,3120.7,3120.4,6.57475598]
[1765766963065,0.00966759,3120.7,3120.6,0.462]
[1765766964178,0.00966759,3120.7,3120.6,3.66651195]
[1765766967497,0.00966759,3120.7,3120.6,0.462]
[1765766967695,0.405504,3120.6,3120.2,3.20485379]
[1765766967888,0.511,3120.5,3120.3,3.20479473]
[1765766968089,0.52066759,3120.5,3120.3,3.69859473]
[1765766968287,0.52066759,3120.5,3120.4,0.4751]
[1765766968487,0.92617159,3120.5,3120.4,0.4751]
[1765766969388,0.92617159,3120.5,3120.4,4.17361734]
[1765766970087,0.92617159,3120.5,3120.4,0.9689]
[1765766970505,0.92617159,3120.5,3120.4,4.17361734]
[1765766970674,0.92617159,3120.5,3120.4,3.67981734]
[1765766971202,0.92617159,3120.5,3120.4,4.17361734]
[1765766972402,0.92817159,3120.5,3120.4,4.17361734]
[1765766973071,0.52266759,3120.5,3120.4,4.17361734]
[1765766975190,0.405504,3120.4,3120.0,3.20510279]
[1765766975486,0.513,3120.5,3120.3,0.4751]
[1765766975682,0.002,3120.5,3120.4,0.9689]
[1765766976981,0.002,3120.5,3120.4,4.17361734]
[1765766977199,0.002,3120.5,3120.4,4.75409263]
[1765766977546,0.002,3120.5,3120.4,6.06098487]
[1765766978194,0.002,3120.5,3120.4,5.54998487]
[1765766979087,0.002,3120.5,3120.4,4.17361734]
[1765766979488,0.002,3120.5,3120.4,3.67981734]
[1765766979804,0.002,3120.5,3120.4,4.17361734]
[1765766987287,0.002,3120.5,3120.4,4.7861398]
[1765766988379,0.002,3120.5,3120.4,4.75409263]
[1765766988585,0.002,3120.5,3120.4,6.06098487]
[1765766990309,0.002,3120.5,3120.4,5.58203204]
[1765766990504,0.002,3120.5,3120.4,6.09303204]
[1765766992394,0.002,3120.5,3120.4,6.06098487]
[1765766993300,0.002,3120.5,3120.4,6.09303204]
[1765766993796,0.002,3120.5,3120.4,6.06098487]
[1765766994203,0.002,3120.5,3120.4,6.09303204]
[1765766995940,0.002,3120.5,3120.4,5.58203204]
[1765766996090,0.002,3120.5,3120.4,6.06098487]
[1765766999521,0.002,3120.5,3120.4,10.49562549]
[1765767001135,0.002,3121.8,3120.4,14.74112949]
[1765767001434,0.002,3121.8,3121.7,4.25575806]
[1765767001604,0.002,3121.8,3121.7,4.76675806]
[1765767001927,0.002,3121.8,3121.7,5.24485806]
[1765767002229,0.002,3121.8,3121.7,4.25575806]
[1765767002695,0.4572,3121.8,3121.7,3.78385806]
[1765767003994,0.9453,3121.8,3121.7,3.78385806]
[1765767004196,0.9453,3121.8,3121.7,3.20338277]
[1765767004427,0.9453,3121.8,3121.6,3.20344679]
[1765767004630,0.2853,3121.6,3120.6,12.8180478]
[1765767004805,0.4535,3121.5,3120.7,1.47356248]
[1765767005123,0.4535,3121.5,3120.7,2.05403777]
[1765767005623,0.9416,3121.5,3120.7,2.05403777]
[1765767005927,0.9416,3121.5,3120.8,9.61291974]
[1765767006124,0.9416,3121.5,3120.8,11.14787669]
[1765767006827,0.4535,3121.5,3120.8,14.83028327]
[1765767007028,0.002,3121.8,3121.4,0.6136]
[1765767007232,0.002,3121.8,3121.7,0.4719]
[1765767007955,0.002,3121.8,3121.4,0.1417]
[1765767008152,0.002,3121.8,3121.7,0.4719]
[1765767008452,0.002,3121.8,3121.7,1.26566513]
[1765767008640,0.002,3121.8,3121.7,1.74376513]
[1765767009222,0.002,3121.8,3121.7,2.25476513]
[1765767009422,0.002,3121.8,3121.7,1.74376513]
[1765767009753,0.002,3121.8,3121.7,2.25476513]
[1765767010049,0.002,3121.8,3121.7,6.03862319]
[1765767014927,0.002,3121.8,3121.7,6.07065701]
[1765767015386,1e-08,3122.3,3122.2,4.39694506]
[1765767015554,1e-08,3122.3,3122.2,6.31108937]
[1765767015882,1e-08,3122.3,3122.2,6.78918937]
[1765767017484,1e-08,3122.3,3122.2,6.16938937]
[1765767017667,0.94330001,3122.3,3122.2,3.78334506]
[1765767018270,0.94330001,3122.3,3122.2,3.20286977]
[1765767019568,0.94330001,3122.3,3121.8,3.20325554]
[1765767019569,0.94330001,3122.3,3121.9,0.58047529]
[1765767019888,0.3007,3122.1,3121.9,0.58047529]
[1765767020185,0.4536,3122.0,3121.9,0.58047529]
[1765767020684,1e-08,3122.3,3121.9,0.58047529]
[1765767020852,1e-08,3122.3,3121.9,1.05237529]
[1765767021060,0.4552,3122.0,3121.9,0.58047529]
[1765767021454,0.9433,3122.0,3121.9,0.58047529]
[1765767021664,0.9433,3122.0,3121.9,3.78365284]
[1765767022488,0.9433,3122.0,3121.9,3.20317755]
[1765767023802,0.9433,3122.0,3121.4,3.20361293]
[1765767023803,0.405504,3121.9,3121.4,3.20361293]
[1765767023986,0.636,3121.5,3121.2,3.20387845]
[1765767024189,0.636,3121.5,3121.1,0.001]
[1765767024190,0.4552,3121.3,3121.1,0.001]
[1765767024491,0.405504,3121.1,3119.9,0.001]
[1765767024688,0.4526,3120.9,3120.7,3.20439075]
[1765767025120,0.9711,3120.8,3120.7,3.20439075]
[1765767025315,0.9711,3120.8,3119.9,0.001]
[1765767025528,0.4552,3120.0,3119.9,3.20623093]
[1765767025689,0.4552,3120.0,3119.9,0.001]
[1765767025882,0.9433,3120.0,3119.9,0.001]
[1765767026980,1.348804,3120.0,3119.9,0.001]
[1765767027183,0.9433,3120.0,3119.9,0.001]
[1765767028812,0.4569,3120.0,3119.9,0.001]
[1765767029028,0.9979,3120.4,3119.9,0.001]
[1765767029321,0.4869,3120.3,3119.9,0.001]
[1765767029484,0.4569,3120.0,3119.9,0.001]
[1765767030086,0.511,3120.4,3119.9,0.4713]
[1765767030286,0.4569,3120.0,3119.9,0.001]
[1765767030721,0.9438,3120.0,3119.9,0.001]
[1765767031918,1.349304,3120.0,3119.9,0.001]
[1765767032094,0.9438,3120.0,3119.9,0.001]
[1765767036125,1.349304,3120.0,3119.9,0.001]
[1765767039135,0.4569,3120.0,3119.9,0.001]
[1765767039334,0.9438,3120.0,3119.9,0.001]
[1765767040418,0.405504,3120.3,3119.9,0.4713]
[1765767040618,0.892404,3120.3,3119.9,0.001]
[1765767041141,0.4869,3120.2,3119.9,0.001]
[1765767041350,0.52066759,3120.4,3120.2,0.4703]
[1765767041649,0.13799384,3121.4,3120.3,0.4703]
[1765767041955,0.13799384,3121.4,3120.3,0.4555]
[1765767041956,0.513,3121.1,3120.3,0.4555]
[1765767042250,0.9999,3121.1,3120.0,0.1664]
[1765767042455,0.9999,3121.1,3120.2,0.58047529]
[1765767042636,0.4869,3121.0,3120.1,6.41005094]
[1765767042813,0.4569,3120.3,3120.1,6.41005094]
[1765767043360,0.3031,3120.2,3120.1,3.20502547]
[1765767044550,0.79,3120.2,3119.9,0.001]
[1765767044845,0.4554,3120.0,3119.9,0.001]
[1765767046372,0.4554,3120.0,3119.9,0.70033089]
[1765767046666,0.4554,3120.0,3119.9,3.20623093]
[1765767046975,1.4533,3120.0,3119.9,3.20623093]
[1765767047340,1.858804,3120.0,3119.9,0.001]
[1765767053349,0.511,3120.0,3119.9,0.001]
[1765767053581,0.9679,3120.0,3119.9,0.001]
[1765767053953,1.4548,3120.0,3119.9,0.001]
[1765767054280,1.860304,3120.0,3119.9,0.001]
[1765767054657,0.9679,3120.0,3119.9,0.001]
[1765767054856,1.4548,3120.0,3119.9,0.001]
[1765767056189,0.511,3120.0,3119.9,0.4713]
[1765767058385,0.511,3120.0,3119.9,3.67653093]
[1765767058590,0.511,3120.0,3119.9,3.20623093]
[1765767059462,0.511,3120.0,3119.9,3.69963093]
[1765767060199,0.9755,3120.0,3119.9,0.001]
[1765767060924,0.511,3120.0,3119.9,0.001]
[1765767061327,1.43,3120.0,3119.9,0.001]
[1765767061933,0.9755,3120.0,3119.9,0.001]
[1765767062132,0.511,3120.0,3119.9,0.4944]
[1765767062439,1.43,3120.0,3119.9,3.20623093]
[1765767063035,0.511,3120.0,3119.9,3.20623093]
[1765767063212,0.9755,3120.0,3119.9,3.20623093]
[1765767065232,0.9755,3120.0,3119.9,0.001]
[1765767065816,1.43,3120.0,3119.9,0.001]
[1765767066725,1.835504,3120.0,3119.9,0.001]
[1765767067031,0.511,3120.0,3119.9,0.001]
[1765767067331,0.9755,3120.0,3119.9,0.001]
[1765767067756,0.511,3120.0,3119.9,0.4944]
[1765767068137,0.511,3120.3,3119.9,1.46375255]
[1765767068322,0.4645,3120.0,3119.9,0.49455255]
[1765767068517,0.4645,3120.0,3119.9,0.001]
[1765767068940,1.324504,3120.0,3119.9,0.001]
[1765767069521,0.1978,3119.9,3119.2,6.36590048]
[1765767069850,0.83146759,3119.8,3119.2,6.36590048]
[1765767070521,1.28596759,3119.8,3119.2,6.36590048]
[1765767071582,0.4629,3119.3,3119.2,3.15995024]
[1765767071748,0.9739,3119.3,3119.0,3.20610936]
[1765767071922,0.3124,3119.1,3119.0,3.20610936]
[1765767072318,0.916504,3119.3,3119.2,3.20595024]
[1765767072730,1.381004,3119.3,3119.2,3.20595024]
[1765767072942,1.835504,3119.3,3119.2,3.20595024]
[1765767073331,2.02002116,3119.3,3119.1,3.20602375]
[1765767073556,2.02002116,3119.3,3119.0,3.20613306]
[1765767074464,2.02002116,3119.3,3119.0,6.41228887]
[1765767075687,2.02002116,3119.3,3118.7,6.99440375]
[1765767075995,1.835504,3119.3,3118.7,6.99440375]
[1765767077874,0.00966759,3119.2,3118.7,6.99440375]
[1765767078465,0.916504,3119.3,3119.1,0.4934]
[1765767078892,0.916504,3119.3,3119.2,0.4934]
[1765767079194,0.511,3119.3,3119.2,0.4934]
[1765767079764,0.511,3119.3,3119.2,3.69935024]
[1765767081895,0.9755,3119.3,3119.0,0.001]
[1765767082099,0.3108,3119.1,3119.0,0.001]
[1765767083166,0.00966759,3119.2,3119.0,0.001]
[1765767083996,0.00966759,3119.2,3119.1,0.4934]
[1765767084201,0.47416759,3119.2,3119.0,0.001]
[1765767084496,0.3108,3119.1,3119.0,0.001]
[1765767085502,0.00966759,3119.2,3119.0,0.001]
[1765767085662,0.00966759,3119.2,3119.1,0.4934]
[1765767085868,0.00966759,3119.2,3119.1,3.69945302]
[1765767086099,0.47416759,3119.2,3119.1,3.20605302]
[1765767086305,0.92866759,3119.2,3119.1,3.20605302]
[1765767086920,0.47416759,3119.2,3119.1,3.20605302]
[1765767087126,0.96146759,3119.2,3119.1,3.20605302]
[1765767088018,0.96146759,3119.2,3119.0,0.001]
[1765767088209,0.7657,3119.1,3119.0,0.001]
[1765767089188,0.2784,3119.1,3119.0,0.001]
[1765767089617,0.7657,3119.1,3119.0,0.001]
[1765767091019,0.511,3119.3,3119.0,0.4848]
[1765767091221,0.511,3119.3,3119.2,0.4838]
[1765767091391,0.511,3119.3,3119.0,0.001]
[1765767091592,0.00966759,3119.2,3119.0,0.001]
[1765767092190,0.00966759,3119.2,3119.1,0.4838]
[1765767093018,0.00966759,3119.2,3119.0,0.001]
[1765767093934,0.4582,3119.1,3119.0,0.001]
[1765767094156,1.32834763,3119.1,3119.0,0.001]
[1765767094324,34.99600065,3119.1,3119.0,0.001]
[1765767094635,22.70560794,3119.1,3119.0,0.001]
[1765767095346,28.05846194,3119.1,3119.0,0.001]
[1765767096216,27.25846194,3119.1,3119.0,0.001]
[1765767096418,27.25846194,3119.1,3119.0,0.201]
[1765767097508,35.57647594,3119.1,3119.0,0.201]
[1765767099723,8.94197394,3119.1,3119.0,0.201]
[1765767100308,9.45297394,3119.1,3119.0,0.201]
[1765767100508,24.48920694,3119.1,3119.0,0.201]
[1765767101452,36.08747594,3119.1,3119.0,0.201]
[1765767101617,34.44574694,3119.1,3119.0,0.201]
[1765767101942,0.46464363,3119.1,3119.0,3.89095581]
[1765767102240,0.9692,3119.1,3119.0,0.201]
[1765767102407,1.4308,3119.1,3119.0,0.201]
[1765767102610,1.836304,3119.1,3119.0,0.201]
[1765767102816,0.511,3119.1,3119.0,0.201]
[1765767103836,0.511,3119.1,3119.0,3.89095581]
[1765767104039,0.511,3119.1,3119.0,0.6848]
[1765767105744,0.511,3119.1,3119.0,3.89095581]
[1765767106048,0.511,3119.1,3119.0,5.07608361]
[1765767106343,0.002,3119.2,3119.0,5.07608361]
[1765767106544,0.002,3119.2,3119.1,1.0831]
[1765767106747,0.002,3119.2,3119.1,4.28915302]
[1765767108050,0.002,3119.2,3119.1,4.86962831]
[1765767108251,0.002,3119.2,3119.1,5.8193795]
[1765767110961,0.5086637,3119.8,3119.7,0.4838]
[1765767111147,0.5086637,3119.8,3119.2,0.4754]
[1765767111664,0.5086637,3119.8,3119.1,8.54163252]
[1765767111665,0.00966759,3119.7,3119.1,8.54163252]
[1765767111955,0.00966759,3119.7,3119.1,8.06623252]
[1765767112257,0.00966759,3119.5,3119.1,8.06623252]
[1765767112661,0.5086637,3119.8,3119.6,0.4838]
[1765767112962,0.5086637,3119.8,3119.7,0.9592]
[1765767113170,0.5086637,3119.8,3119.7,0.4838]
[1765767113759,0.5086637,3119.8,3119.7,3.68923642]
[1765767114476,0.064104,3120.0,3119.7,7.37007284]
[1765767114764,0.064104,3120.0,3119.9,0.4838]
[1765767115358,0.064104,3120.0,3119.9,0.9592]
[1765767115841,0.064104,3120.0,3119.9,4.16443093]
[1765767116156,0.064104,3120.0,3119.9,3.68903093]
[1765767116464,0.064104,3120.0,3119.9,4.92757839]
[1765767117851,0.00966759,3120.4,3119.9,8.13280932]
[1765767118140,0.00966759,3120.4,3120.0,0.4939]
[1765767119775,0.00966759,3120.4,3120.3,0.4974]
[1765767120135,0.00966759,3120.4,3120.3,3.70222004]
[1765767120343,0.94546759,3120.4,3119.9,3.20513016]
[1765767120660,0.00966759,3120.4,3120.3,3.20482004]
[1765767121161,0.48986759,3120.4,3120.3,3.20482004]
[1765767121672,0.00966759,3120.4,3119.9,0.38654302]
[1765767121852,0.32026759,3120.2,3120.0,3.20511467]
[1765767122267,0.32026759,3120.2,3119.2,0.82672325]
[1765767122268,0.9885,3120.1,3119.2,0.82672325]
[1765767122580,0.405504,3120.0,3119.5,3.20561244]
[1765767122741,0.4802,3119.6,3119.5,3.20561244]
[1765767124669,0.4802,3119.6,3119.3,0.58047529]
[1765767124968,0.51,3120.1,3119.5,0.4974]
[1765767125767,0.51,3120.1,3120.0,0.4974]
[1765767125939,0.51,3120.1,3119.3,0.931622]
[1765767126140,0.405504,3120.0,3119.3,0.931622]
[1765767126552,0.405504,3120.0,3119.4,6.41148938]
[1765767128250,0.861104,3120.0,3119.4,6.41148938]
[1765767128868,0.405504,3120.0,3119.4,6.41148938]
[1765767129370,0.4802,3119.5,3119.4,3.20574469]
[1765767129576,0.861104,3120.0,3119.4,3.20574469]
[1765767129577,0.861104,3120.0,3119.4,6.41148938]
[1765767129745,0.861104,3120.0,3119.4,6.90888938]
[1765767129944,0.863104,3120.0,3119.4,6.90888938]
[1765767130770,0.863104,3120.0,3119.9,0.4974]
[1765767130771,0.407504,3120.0,3119.9,0.4974]
[1765767131472,0.887704,3120.0,3119.5,0.4939]
[1765767132183,0.405504,3119.8,3119.1,0.1249]
[1765767132356,0.405504,3119.8,3119.3,3.20584393]
[1765767132986,0.4556,3119.8,3119.2,3.20595024]
[1765767133345,0.4556,3119.8,3119.2,6.41190048]
[1765767133648,0.00966759,3119.9,3119.2,6.90580048]
[1765767133847,0.00966759,3119.9,3119.2,3.69985024]
[1765767134043,0.00966759,3119.7,3119.2,3.20595024]
[1765767134264,0.915504,3119.6,3119.2,3.20595024]
[1765767134671,0.915504,3119.6,3119.5,0.4974]
[1765767134888,0.915504,3119.6,3119.5,3.70304192]
[1765767137147,0.002,3120.0,3119.5,7.40258384]
[1765767137348,0.002,3120.0,3119.9,0.4974]
[1765767137693,0.512,3120.0,3119.9,0.4974]
[1765767138958,0.512,3120.0,3119.9,0.9913]
[1765767139158,0.002,3120.0,3119.9,4.19653093]
[1765767139376,0.002,3120.0,3119.9,4.93671841]
[1765767142285,0.002,3120.0,3119.9,5.5171937]
[1765767147082,0.002,3120.0,3119.9,5.549246]
[1765767147592,0.002,3120.0,3119.9,5.0232937]
[1765767147760,0.002,3120.0,3119.9,5.5094937]
[1765767147963,0.002,3120.0,3119.9,5.0232937]
[1765767148166,0.002,3120.0,3119.9,5.5094937]
[1765767148564,0.002,3120.0,3119.9,3.70263093]
[1765767148883,0.002,3120.0,3119.9,4.19013093]
[1765767149182,0.002,3120.0,3119.9,4.22218323]
[1765767149588,0.002,3120.0,3119.9,4.19013093]
[1765767154320,0.002,3120.0,3119.9,4.77060622]
[1765767154603,0.002,3120.0,3119.9,5.60025353]
[1765767155306,0.002,3120.0,3119.9,5.56820123]
[1765767156683,0.002,3120.0,3119.9,6.07820123]
[1765767157305,0.002,3120.0,3119.9,5.56820123]
[1765767157491,0.002,3120.0,3119.9,6.07820123]
[1765767158093,0.002,3120.0,3119.9,6.11025353]
[1765767159395,0.002,3120.0,3119.9,10.54687597]
[1765767159594,0.002,3120.0,3119.9,10.51482367]
[1765767161119,0.002,3120.0,3119.9,10.00482367]
[1765767161411,0.002,3120.0,3119.9,9.49062367]
[1765767161611,0.002,3120.0,3119.9,8.91014838]
[1765767161812,0.002,3120.0,3119.9,3.67593093]
[1765767162112,0.002,3120.0,3119.9,4.25640622]
[1765767162414,0.002,3120.0,3119.9,3.67593093]
[1765767162618,0.002,3120.0,3119.9,3.20523093]
[1765767162810,0.002,3120.0,3119.9,4.25640622]
[1765767167821,0.002,3120.0,3119.9,5.52213353]
[1765767168028,0.002,3120.0,3119.9,5.49008123]
[1765767168230,0.002,3120.0,3119.9,5.00258123]
[1765767170624,0.002,3120.0,3119.9,5.49008123]
[1765767172398,0.002,3120.0,3119.9,5.00258123]
[1765767175840,0.002,3120.0,3119.9,4.42210594]
[1765767177609,0.002,3120.0,3119.9,5.47568123]
[1765767177813,0.002,3120.0,3119.9,11.63089594]
[1765767180745,0.002,3121.1,3120.4,0.6616]
[1765767181043,0.002,3121.1,3121.0,0.4952]
[1765767181243,0.002,3121.1,3120.9,0.58047529]
[1765767181418,0.002,3121.1,3120.9,1.09047529]
[1765767181739,0.002,3121.1,3121.0,0.4952]
[1765767181918,0.002,3121.1,3121.0,5.05386553]
[1765767183526,0.002,3121.1,3121.0,9.48870319]
[1765767184235,0.4608,3121.1,3121.0,8.99350319]
[1765767184627,0.9329,3121.1,3121.0,3.78457653]
[1765767184935,0.4608,3121.1,3121.0,3.78457653]
[1765767185129,0.002,3121.1,3121.0,3.78457653]
[1765767185636,0.002,3121.1,3121.0,9.2197552]
[1765767185835,0.002,3121.1,3121.0,9.18771419]
[1765767186022,0.002,3121.1,3121.0,10.87039108]
[1765767186642,0.002,3121.1,3121.0,5.96245342]
[1765767186814,0.4608,3121.1,3121.0,8.21941419]
[1765767187336,0.002,3121.1,3121.0,8.21941419]
[1765767187748,0.002,3121.1,3121.0,8.71461419]
[1765767188118,0.002,3121.1,3121.0,8.21941419]
[1765767188440,0.9329,3121.1,3121.0,8.21941419]
[1765767188744,0.9329,3121.1,3121.0,3.20410124]
[1765767190214,0.9329,3121.1,3120.4,6.40943468]
[1765767190410,0.6496,3120.5,3120.4,3.78519263]
[1765767190923,1.1217,3120.5,3120.4,3.78519263]
[1765767191750,0.4588,3120.5,3120.4,3.78519263]
[1765767192170,0.1908,3120.9,3120.6,3.20451195]
[1765767192470,0.1908,3120.9,3120.6,6.4090239]
[1765767192671,0.4588,3120.7,3120.6,3.78498724]
[1765767193852,0.9309,3120.7,3120.6,3.78498724]
[1765767199351,0.9309,3120.7,3120.6,3.20451195]
[1765767200959,0.9309,3120.7,3120.5,0.001]
[1765767201154,0.7708,3120.6,3120.5,0.001]
[1765767202685,0.1908,3120.9,3120.5,0.001]
[1765767202686,0.6629,3120.9,3120.5,0.001]
[1765767202892,0.6629,3120.9,3120.5,0.4962]
[1765767203059,0.1908,3120.9,3120.5,0.4962]
[1765767203262,0.002,3121.1,3120.5,0.4962]
[1765767203467,0.4741,3121.1,3120.5,0.4962]
[1765767205377,0.4741,3121.1,3120.6,6.4090239]
[1765767205885,0.4588,3120.7,3120.6,3.20451195]
[1765767206072,0.4588,3120.7,3120.6,4.16609148]
[1765767206471,0.002,3121.1,3120.6,11.07031538]
[1765767206666,0.5012,3121.1,3120.6,11.07031538]
[1765767207480,0.002,3120.9,3120.6,11.07031538]
[1765767207689,0.002,3120.9,3120.6,7.86580343]
[1765767207891,0.002,3120.9,3120.7,0.78668034]
[1765767208591,0.002,3120.9,3120.8,3.20430658]
[1765767208989,0.4999,3120.9,3120.8,3.20430658]